Cogmind - Beta 13 *** ADVENTURER MODE // 2024.03.31 @ 01:25:04 Player: Wilihelm Result: Destroyed by G-47 Trooper with Particle Gun Performance ------------- Evolutions (2) 1000 Regions Visited (3) 600 Robots Destroyed (31) 155 Value Destroyed (853) 853 Prototype IDs (0) 0 Alien Tech Used (0) 0 Bonus (0) 0 TOTAL SCORE: 2608 Bonus ------- None Cogmind --------- Core Integrity 0/550 Matter 205/300 Energy 100/100 System Corruption 0% Temperature Cool (18) Movement Core (350) Ox6 Location -8/Materials Parts ------- > --- POWER (1) -------- (None) > --- PROPULSION (4) --- (None) > --- UTILITY (4) ------ Large Storage Unit Visual Processing Unit > --- WEAPON (2) ------- (None) > --- INVENTORY (15) --- Improved Heat Sink Medium Battery (150) High-capacity Matter Pod (200) Sensor Array Terrain Scan Processor Weapon Shielding Light Armor Plating Medium Armor Plating Grenade Launcher Grenade Launcher Peak State ------------ > --- POWER ------------ Light Nuclear Core > --- PROPULSION ------- Light Treads Light Treads Light Treads Light Treads > --- UTILITY ---------- Cooling System Large Storage Unit Visual Processing Unit Sensor Array > --- WEAPON ----------- Particle Gun Beam Cannon > --- INVENTORY -------- Improved Heat Sink Medium Battery High-capacity Matter Pod Sensor Array Terrain Scan Processor Weapon Shielding Light Armor Plating Medium Armor Plating Grenade Launcher Grenade Launcher [Rating: 17] Favorites ----------- Power Ion Engine Engine Ion Engine Power Core Light Nuclear Core Propulsion Light Treads Treads Light Treads Wheel Compact Wheel Utility Sensor Array Device Sensor Array Storage Large Storage Unit Processor Visual Processing Unit Weapon Grenade Launcher Energy Gun Particle Gun Energy Cannon Beam Cannon Ballistic Gun Assault Rifle Launcher Grenade Launcher Build | -11 -10 -9 -8 ------- Run | Yrd Mat Mat Mat Slots Evolved 4 | . . 2 2 Power . | . . . . Propulsion 2 | . . . 2 Utility 2 | . . 2 . Weapon . | . . . . Parts Attached 45 | 9 18 11 7 Power 6 | 1 1 2 2 Engine 5 | 1 1 2 1 Core 1 | . . . 1 Reactor . | . . . . Propulsion 16 | 5 5 4 2 Treads 15 | 4 5 4 2 Leg . | . . . . Wheel 1 | 1 . . . Hover . | . . . . Flight . | . . . . Utility 9 | 1 4 3 1 Device 4 | . 2 1 1 Storage 3 | 1 2 . . Processor 2 | . . 2 . Hackware . | . . . . Protection . | . . . . Artifact . | . . . . Weapon 14 | 2 8 2 2 Energy Gun 5 | 2 2 1 . Energy Cannon 1 | . . 1 . Ballistic Gun 3 | . 1 . 2 Ballistic Cannon . | . . . . Launcher 5 | . 5 . . Special Weapon . | . . . . Impact Weapon . | . . . . Slashing Weapon . | . . . . Piercing Weapon . | . . . . Special Melee Weapon . | . . . . Unidentified Prototypes . | . . . . Parts Lost 9 | . . . 9 Power 1 | . . . 1 Propulsion 4 | . . . 4 Utility 2 | . . . 2 Weapon 2 | . . . 2 Highest Loss Streak 7 | . . . 7 To Critical Strikes . | . . . . Average Slot Usage (%) 95 | . 96 99 86 Engine 10 | . 13 10 4 Treads 25 | . 27 21 26 Device 11 | . 12 11 11 Storage 12 | . 13 11 9 Processor 9 | . . 22 14 Energy Gun 8 | . 9 8 5 Energy Cannon 3 | . . 8 5 Ballistic Gun 1 | . . . 5 Launcher 9 | . 17 4 . Naked Turns . | . . . . Heaviest Build 32 | 14 32 32 32 Greatest Support 80 | 40 40 40 80 Greatest Overweight (x) 10 | . 10 8 10 Average Overweight (x) . | . . . . Largest Inventory Capacity 15 | 8 15 15 15 Average Capacity 13 | 7 12 15 15 Most Carried 12 | 2 10 12 12 Average Carried 7 | . 5 10 10 Final Capacity 15 | 8 15 15 15 Final Carried 12 | . 10 12 10 Class Distribution -------------------- 61% | Mutant 38% | Skirmisher Dominant Class ---------------- Mutant | -10/Materials Skirmisher | -9/Materials Skirmisher | -8/Materials Resources | -11 -10 -9 -8 ----------- Run | Yrd Mat Mat Mat Matter Collected 926 | 186 272 364 104 Remotely . | . . . . Salvage Created 1252 | . 236 546 470 Parts 50 | . 16 19 15 Haulers Intercepted 1 | . . . 1 Recyclers Shooed 1 | . . 1 . Parts Field Recycled . | . . . . Retrieved Matter . | . . . . Parts Self-Destructed . | . . . . Prevented . | . . . . Kills | -11 -10 -9 -8 ------- Run | Yrd Mat Mat Mat Combat Hostiles Destroyed 21 | . 8 7 6 Guns 9 | . 2 5 2 Cannons 3 | . . 1 2 AOE 6 | . 6 . . Classes Destroyed 8 | . 3 3 2 Worker 2 | . . 2 . Hauler 1 | . . . 1 Recycler 4 | . . 3 1 Operator 1 | . . . 1 Watcher 2 | . 1 1 . Swarmer 3 | . 3 . . Grunt 14 | . 5 5 4 Sentry 4 | . . 2 2 Best Kill Streak 5 | . 5 3 3 Combat Bots Only 5 | . 5 3 2 Max Kills in Single Turn 2 | . 2 1 1 Gunslinging . | . . . . Exploded 2 | . 2 . . Melee . | . . . . Uniques/NPCs Destroyed . | . . . . Combat | -11 -10 -9 -8 -------- Run | Yrd Mat Mat Mat Hostile Shots Fired 191 | . 22 38 131 Missed 42 | . 6 12 24 Damage Taken 1798 | . 158 284 1356 Core 636 | . 27 48 561 Absorbed by Shields . | . . . . Ignored by Resistances 492 | . 48 80 364 Core Remaining (%) 92 | 100 89 88 . Volleys Fired 96 | . 15 36 45 Largest 2 | . 2 2 2 Hottest 125 | . 95 125 125 Shots Fired 172 | . 27 59 86 Gun 120 | . 20 34 66 Cannon 45 | . . 25 20 Launcher 7 | . 7 . . Special . | . . . . Kinetic 48 | . . . 48 Thermal 101 | . 4 59 38 Explosive 7 | . 7 . . Electromagnetic 16 | . 16 . . Robot Hit Streak 20 | . 4 15 20 Robot Miss Streak 2 | . 1 1 2 Penetration Max . | . . . . Secondary Targets . | . . . . Shots Hit Robots 131 | . 12 47 72 Core Hits 47 | . 12 17 18 Critical Kills 1 | . . . 1 Critical Parts Destroyed . | . . . . Critical Strikes 3 | . . 2 1 Burn 2 | . . 2 . Meltdown 1 | . . . 1 Melee Attacks . | . . . . Impact . | . . . . Slashing . | . . . . Piercing . | . . . . Sneak Attacks . | . . . . Combat Hostiles . | . . . . Follow-up Attacks . | . . . . Damage Inflicted 2242 | . 489 748 1005 Guns 1361 | . 148 504 709 Cannons 540 | . . 244 296 Explosions 341 | . 341 . . Melee . | . . . . Ramming . | . . . . Kinetic 449 | . . . 449 Thermal 1506 | . 202 748 556 Explosive 167 | . 167 . . Electromagnetic 120 | . 120 . . Impact . | . . . . Slashing . | . . . . Piercing . | . . . . Highest Corruption . | . . . . Average Corruption . | . . . . Corruption Purged . | . . . . Corruption Blocked . | . . . . Overload Shots . | . . . . Overflow Damage . | . . . . Projectiles . | . . . . Explosions . | . . . . Melee . | . . . . Knockbacks . | . . . . Impact . | . . . . Kinetic . | . . . . Secondary . | . . . . Self-Inflicted Damage 26 | . 26 . . Shots 1 | . 1 . . Rammed 1 | . . . 1 Targets Rammed 1 | . . . 1 Kicked . | . . . . Crushed . | . . . . Highest Temperature 558 | . 112 311 558 Average Temperature 145 | . 43 107 264 Received Heat Transfer 1254 | . 57 189 1008 Effects 16 | . . . 16 Shutdowns 5 | . . . 5 Energy Bleed 2 | . . . 2 Interference 7 | . . . 7 Damage (minor) 1 | . . . 1 Damage (core) 1 | . . . 1 Siege Activations . | . . . . Robots Corrupted . | . . . . Combat Hostiles . | . . . . Parts Fried . | . . . . Impact Corruptions . | . . . . Robots Melted 3 | . . 1 2 Combat Hostiles 3 | . . 1 2 Parts Melted 8 | . . 5 3 Heat Transferred 3332 | . 224 1887 1221 Parts Sabotaged . | . . . . Parts Stolen . | . . . . Parts Stripped . | . . . . Power Chain Reactions 2 | . 2 . . Alert | -11 -10 -9 -8 ------- Run | Yrd Mat Mat Mat Peak Influence 229 | . 142 182 229 Initial 41 | . . . 41 Average 73 | . 67 68 139 Maximum Alert Level 1 | . . . 1 Low Security (%) 93 | 100 100 100 65 Level 1 6 | . . . 34 Level 2 . | . . . . Level 3 . | . . . . Level 4 . | . . . . Level 5 . | . . . . High Security . | . . . . Max Security . | . . . . Squads Dispatched 5 | . 1 2 2 Investigation 2 | . 1 1 . Extermination . | . . . . Reinforcement 2 | . . 1 1 Assault . | . . . . Garrison 1 | . . . 1 Intercept . | . . . . Searches Triggered . | . . . . Construction Impeded . | . . . . Haulers Reinforced . | . . . . Active Scanning Responses . | . . . . Cargo Convoy Interrupts . | . . . . Stealth | -11 -10 -9 -8 --------- Run | Yrd Mat Mat Mat Distress Signals 2 | . . . 2 Communications Jammed . | . . . . Distress Signals . | . . . . Times Spotted 37 | . 11 11 15 Peak Tracking Total 7 | . 5 2 7 Tactical Retreats 2 | . . . 2 Traps | -11 -10 -9 -8 ------- Run | Yrd Mat Mat Mat Traps Triggered 6 | . 5 1 . Indirectly . | . . . . Trap Hack Attempts . | . . . . Triggered . | . . . . Disarmed . | . . . . Reprogrammed . | . . . . Reused . | . . . . Traps Extracted . | . . . . Installed . | . . . . Triggered . | . . . . Machines | -11 -10 -9 -8 ---------- Run | Yrd Mat Mat Mat Machines Disabled 1 | . 1 . . Max in Single Turn 1 | . 1 . . Machines Repaired . | . . . . Machines Dismantled . | . . . . Machines Sabotaged . | . . . . Overloaded Fab Kills . | . . . . Hacking | -11 -10 -9 -8 --------- Run | Yrd Mat Mat Mat Machines Accessed 8 | . 3 4 1 Terminals 5 | . 2 2 1 Fabricators . | . . . . Repair Stations . | . . . . Recycling Units 2 | . 1 1 . Scanalyzers 1 | . . 1 . Garrison Access . | . . . . Total Hacks 37 | . 10 25 2 Successful 25 | . 6 18 1 Failed 12 | . 4 7 1 Catastrophic 1 | . 1 . . Database Lockouts . | . . . . Manual 1 | . 1 . . Terminals 25 | . 6 17 2 Fabricators . | . . . . Repair Stations . | . . . . Recycling Units 9 | . 4 5 . Scanalyzers 3 | . . 3 . Garrison Access . | . . . . Terminal Hacks 15 | . 2 12 1 Record 7 | . 1 5 1 Alert Level 3 | . . 3 . Locate Traps 1 | . . 1 . Dispatch Records 1 | . . 1 . Investigation Status 1 | . . 1 . Reinforcement Status 2 | . 1 1 . Fabricator Hacks . | . . . . Repair Station Hacks . | . . . . Recycling Unit Hacks 7 | . 4 3 . Recycle Component 1 | . . 1 . Process 3 | . 2 1 . Report Inventory 3 | . 2 1 . Scanalyzer 3 | . . 3 . Insert Component 1 | . . 1 . Analyze 2 | . . 2 . Garrison Access Hacks . | . . . . Unauthorized Hacks . | . . . . Terminals . | . . . . Fabricators . | . . . . Repair Stations . | . . . . Recycling Units . | . . . . Scanalyzers . | . . . . Garrison Access . | . . . . Data Cores Recovered 1 | . . . 1 Used 1 | . . . 1 Hacking Detections 8 | . 3 4 1 Full Trace Events 4 | . 2 2 . Feedback Events . | . . . . Feedback Blocked . | . . . . Robot Schematics Acquired . | . . . . Robots Built . | . . . . Authchips . | . . . . Time . | . . . . Total Robot Build Rating . | . . . . Part Schematics Acquired 1 | . . 1 . Parts Built . | . . . . Authchips . | . . . . Time . | . . . . Total Part Build Rating . | . . . . Parts Repaired . | . . . . Time . | . . . . Parts Recycled 1 | . . 1 . Recycled Matter 58 | . 10 48 . Retrieved Matter . | . . . . Retrieved Components . | . . . . Parts Scanalyzed 1 | . . 1 . Part Schematics Acquired 1 | . . 1 . Parts Damaged . | . . . . Bothacking | -11 -10 -9 -8 ------------ Run | Yrd Mat Mat Mat Used RIF Installer . | . . . . Robots Hacked . | . . . . Non-combat . | . . . . Combat . | . . . . Robot Hacks Applied . | . . . . Relay Couplers Released . | . . . . Fabnet Peak Effective % . | . . . . Robots Rewired . | . . . . Allies Hacked . | . . . . Hacks Repelled . | . . . . Allies | -11 -10 -9 -8 -------- Run | Yrd Mat Mat Mat Total Allies . | . . . . Largest Group . | . . . . Highest-Rated Group . | . . . . Highest-Rated Ally . | . . . . Total Orders . | . . . . Ally Attacks . | . . . . Total Damage . | . . . . Kills . | . . . . Allies Corrupted . | . . . . Allies Melted . | . . . . Intel | -11 -10 -9 -8 ------- Run | Yrd Mat Mat Mat Robot Analysis Total . | . . . . Derelict Logs Recovered . | . . . . Drone Launches . | . . . . Drone Recoveries . | . . . . Exploration | -11 -10 -9 -8 ------------- Run | Yrd Mat Mat Mat Turns Passed 2203 | 212 971 634 386 Spaces Moved 1117 | 126 543 319 129 Core 20 | 6 1 1 12 Treads 1097 | 120 542 318 117 Legs . | . . . . Wheels . | . . . . Hover . | . . . . Flight . | . . . . Fastest Speed 50 | 50 160 160 160 Average Speed 163 | 154 161 160 183 Slowest Speed 550 | 160 550 450 550 Overloaded Moves . | . . . . Propulsion Burnouts . | . . . . Robots Hopped . | . . . . Cave-ins Triggered . | . . . . Exploration Rate (%) 30 | 6 72 27 18 Regions Visited 3 Branch Regions . Pre-discovered Areas . | . . . . Known Exits Taken 1 | . . 1 . Unknown Exits Taken 2 | 1 1 . . Scrap Searched . | . . . . Spaces Dug . | . . . . Terrain Destroyed 72 | . 72 . . Melee . | . . . . Projectile . | . . . . AOE 72 | . 72 . . Terrain Rammed . | . . . . Walls Destroyed . | . . . . Machines Disabled . | . . . . Actions | -11 -10 -9 -8 --------- Run | Yrd Mat Mat Mat Total 1323 | 142 610 380 191 Wait . | . . . . Move 1114 | 125 542 318 129 Hop . | . . . . Pick Up 48 | 7 25 11 5 Fast Attach . | . . . . Attach 25 | 6 9 6 4 Detach 2 | . 1 1 . Swap 20 | 3 9 5 3 Drop 17 | 1 9 3 4 Fire 96 | . 15 36 45 Melee . | . . . . Ram 1 | . . . 1 Kick . | . . . . Crush . | . . . . Escape Stasis . | . . . . Rewire . | . . . . Trap . | . . . . Miscellaneous . | . . . . Route ------- -11/Scrapyard -10/Materials (discovered 4 exits: *Mat x3 / [*Min]) -9/Materials -8/Materials History --------- Turn | Location | Event 12 | -11/Scrapyard | Discovered new exit (range 15) 213 | -11/Scrapyard | Entered Materials 309 | -10/Materials | Build established: Mutant 476 | -10/Materials | Discovered new exit (range 15) 730 | -10/Materials | Discovered new exit (range 16) 947 | -10/Materials | Discovered new exit (range 8) 1116 | -10/Materials | Discovered new exit (range 16) 1184 | -10/Materials | Entered another Materials area 1184 | -9/Materials | Evolved 2 slots: Utility x2 1479 | -9/Materials | Build established: Skirmisher 1803 | -9/Materials | Discovered new exit (range 5) 1816 | -9/Materials | Identified exit to Materials 1818 | -9/Materials | Entered another Materials area 1818 | -8/Materials | Evolved 2 slots: Propulsion x2 2117 | -8/Materials | Garrison activated, responded to threat 2183 | -8/Materials | Core integrity fell below 50% 2197 | -8/Materials | Core integrity fell below 20% 2204 | -8/Materials | Destroyed by G-47 Trooper with Particle Gun Last Messages --------------- Lgt. Nuclear Core destroyed. T-07 Excavator destroyed. Critical hit (Burn: +37). W-25 Informer distress signal alerts nearby ally. Assault Rifle destroyed. Critical hit (Burn: +37). U-05 Engineer builds a Door. Assault Rifle destroyed. Cooling System destroyed. Critical hit (Burn: +37). Terminal disabled. U-05 Engineer builds a Door. Slammed into A-02 Transporter. Ramming works as a last resort when unarmed or blocked, but can have serious negative consequences. Destabilizing: System interference. Sensor Array temporarily disabled. Sensor Array destroyed. Map ----- +----------------------------------------------------+ | ?### ^ [! #??????????????????# | | ???# ?????????????????# | | ???# """ ###????????????????####### | | ???# "G ####+##????????????????????????? | | ???# """ *#??? ?????????????????????????? | | ???# #??? #????????????????????????? | | ???# #??? !#????????????????????????? | | ?###+## #???? #????????????????????????? | | ?# # #????!#????????????????????????? | | ?# ######### #??????????????????????????????? | | ?# #???????? #??????????????????????????????? | | ?# ######### ####/#?????????????????????????? | | ?# + #?????????????????????????? | | ?# # ## #???? ??????????????????????????? | | ?# # #??????# ??????????????????????????? | | ?# / + #??????# ??????????????????????????? | | ?# ### ####??????# ??????????????????????????? | | ?######?# #?????????# ?????+#???????????????????? | | ????????# #?????????# ????? #?##????????????????? | | ????????# #?????????# ????? # ?????????????????? | | ????????# #?????????# ##### # ??????????????????? | | ????????# #?????????+* +???????????????????? | | ????????# #?????????#%^ ##+#????????????????? | | ????????# #?????????#! #????????????????? | | ????????# #?????????# g #????????????????? | | ????????# #???###???# ^@ u #### ##??????????? | | ????????# ##### ###?#=^ #??????????? | | ????????#!%+=![% !#?#%= +??????????? | | ????????# ##[! #?#gg" " #??????????? | | ????????#*## ! #?# #??????????? | | ????????#*## #?# #??????????? | | ????????# ##] [ #?# ############# #??????????? | | ????????# ## ### ###??????????? ?????????? | | ????????#%######+## ]! #???????????? ????????? | | ????????# "%" !%[### #??????? ????????? | | ????????+ " ! #?????????????????? | | ????????# ### #?????????????????? | | ????????### ####### #???????????????????????? | | ??????????# #?????#######???????????????????????? | | ???????????/#???????????????????????????????????? | | ??????????? ???????????????????????????????????? | | ???????????? ???????????????????????????????????? | | ???????????? #??????????????????????????????????? | | ????????????!#??????????????????????????????????? | | ?????????????#??????????????????????????????????? | | ????????????????????????????????????????????????? | | ????????????????????????????????????????????????? | | ????????????????????????????????????????????????? | | ????????????????????????????????????????????????? | | ????????????????????????????????????????????????? | +----------------------------------------------------+ Best States ------------- Heat Dissipation 53 Energy Generation 14 Energy Capacity 250 Matter Stores 300 Matter Capacity 300 Sight Range 18 Robot Scan Range 14 Terrain Scan Density 10 Resistance: KI 20 Resistance: TH 20 Resistance: EX 20 Resistance: EM 20 Resistance: I 20 Resistance: S 20 Resistance: P 20 Evasion (%) 40 Recoil Reduction 4 Offensive Hacking 10 Item Schematics ----------------- Med. Armor Plating | -9/Materials | Scanalyzed Robot Schematics ------------------ None Fabricated ------------ Nothing Alien Tech Used ----------------- None Achievements -------------- Dynamic Key It's Just You Troublemaker Challenges ------------ None Game ------ Seed HardlightRefineryExpander Manual? 0 Play Time 00:40:46 Cumulative 1.9 hours Start 2024.03.31 @ 00:43:58 End 2024.03.31 @ 01:25:04 Sessions 1 Manual Loads 0 Difficulty Adventurer Special Mode None Game No. 3 Rogue 0 Adventurer 3 Explorer 0 Win Type - Total 0 Types 0/0/0/0/0/0/0/0/0 Lore% 2 Gallery% 4 Achievement% 5 Wizard Run 0 Options --------- Layout 1 ASCII 0 Keyboard 0 Movement Mouse Keybinds 0 Fullscreen 1 Font 24/Smallcaps Map View 50x40 Zoom Use 0% Tactical HUD 0 Map Filters NONE Filters NONE Steam 1 RUN: b8b375b3-d933-40ce-b832-5d070e069fe3